[Event "*** SCC Grand Prix: Titled Tuesday Blitz"]
[Site "Chess.com"]
[Date "2020.07.14"]
[Round "8"]
[White "GMKrikor"]
[Black "arminmusovic"]
[Result "1-0"]
[WhiteElo "2687"]
[BlackElo "2553"]
[TimeControl "180+1"]
[EndTime "11:36:16 PDT"]
[Termination "GMKrikor won by resignation"]

1. e4 {[%clk 0:03:00.9]} 1... c6 {[%clk 0:02:59.4]} 2. d4 {[%clk 0:03:00.5]}
2... d5 {[%clk 0:03:00.3]} 3. Nc3 {[%clk 0:02:45.6]} 3... dxe4 {[%clk
0:02:59.6]} 4. Nxe4 {[%clk 0:02:46.5]} 4... Nf6 {[%clk 0:03:00.2]} 5. Nxf6+
{[%clk 0:02:46.4]} 5... exf6 {[%clk 0:03:01.1]} 6. c3 {[%clk 0:02:46.5]} 6...
Bd6 {[%clk 0:03:00.2]} 7. Bd3 {[%clk 0:02:46.7]} 7... O-O {[%clk 0:03:00.8]} 8.
Qc2 {[%clk 0:02:46.8]} 8... Re8+ {[%clk 0:03:01.7]} 9. Ne2 {[%clk 0:02:47.1]}
9... Kh8 {[%clk 0:03:02.6]} 10. O-O {[%clk 0:02:42.5]} 10... Nd7 {[%clk
0:03:03]} 11. Be3 {[%clk 0:02:39.6]} 11... Nf8 {[%clk 0:03:03.2]} 12. Rad1
{[%clk 0:02:37.8]} 12... Bg4 {[%clk 0:03:03.1]} 13. h3 {[%clk 0:02:34.7]} 13...
Bh5 {[%clk 0:03:03.1]} 14. c4 {[%clk 0:02:34.5]} 14... Rc8 {[%clk 0:03:02]} 15.
Rfe1 {[%clk 0:02:22.9]} 15... Bb8 {[%clk 0:02:59]} 16. g3 {[%clk 0:01:44.2]}
16... Ne6 {[%clk 0:02:37]} 17. Kg2 {[%clk 0:01:36.4]} 17... Qa5 {[%clk
0:02:29.3]} 18. a3 {[%clk 0:01:17.4]} 18... Qc7 {[%clk 0:02:20.1]} 19. Bf5
{[%clk 0:01:10.1]} 19... Rcd8 {[%clk 0:02:11.3]} 20. d5 {[%clk 0:00:56.7]} 20...
Ng5 {[%clk 0:02:03.1]} 21. Bxg5 {[%clk 0:00:51.4]} 21... fxg5 {[%clk 0:02:02.7]}
22. Qd3 {[%clk 0:00:22.5]} 22... a6 {[%clk 0:01:36.2]} 23. Bg4 {[%clk
0:00:19.7]} 23... Bg6 {[%clk 0:01:34.1]} 24. Qd2 {[%clk 0:00:19.3]} 24... Qb6
{[%clk 0:01:25.5]} 25. Bf3 {[%clk 0:00:17.7]} 25... Be5 {[%clk 0:01:13.9]} 26.
b4 {[%clk 0:00:17.5]} 26... cxd5 {[%clk 0:01:08.9]} 27. cxd5 {[%clk 0:00:17.9]}
27... Qd6 {[%clk 0:01:07.5]} 28. Qxg5 {[%clk 0:00:16.9]} 28... Bb2 {[%clk
0:01:05.7]} 29. Nf4 {[%clk 0:00:13.8]} 29... Bxa3 {[%clk 0:01:01.5]} 30. h4
{[%clk 0:00:13.3]} 30... h6 {[%clk 0:00:58.3]} 31. Nxg6+ {[%clk 0:00:12.1]}
31... fxg6 {[%clk 0:00:59.2]} 32. Qg4 {[%clk 0:00:11.2]} 32... Bxb4 {[%clk
0:00:57.7]} 33. Re6 {[%clk 0:00:11.3]} 33... Qf8 {[%clk 0:00:46.1]} 34. Qxg6
{[%clk 0:00:08.9]} 34... Bc5 {[%clk 0:00:37.8]} 35. Be4 {[%clk 0:00:05.1]} 35...
Kg8 {[%clk 0:00:23.3]} 36. Qh7+ {[%clk 0:00:04.6]} 1-0

[Event "*** SCC Grand Prix: Titled Tuesday Blitz"]
[Site "Chess.com"]
[Date "2020.07.14"]
[Round "8"]
[White "GustavoJuarezF"]
[Black "diamonds13"]
[Result "0-1"]
[WhiteElo "2006"]
[BlackElo "2236"]
[TimeControl "180+1"]
[EndTime "11:36:17 PDT"]
[Termination "diamonds13 won on time"]

1. e4 {[%clk 0:03:00.9]} 1... c5 {[%clk 0:02:58.4]} 2. Nc3 {[%clk 0:02:54.4]}
2... Nc6 {[%clk 0:02:45.8]} 3. g3 {[%clk 0:02:54.2]} 3... g6 {[%clk 0:02:43.4]}
4. Bg2 {[%clk 0:02:54.2]} 4... Bg7 {[%clk 0:02:43.4]} 5. Nge2 {[%clk 0:02:54.4]}
5... d6 {[%clk 0:02:43.4]} 6. O-O {[%clk 0:02:54.3]} 6... e5 {[%clk 0:02:43.8]}
7. h3 {[%clk 0:02:53.7]} 7... Nge7 {[%clk 0:02:43.7]} 8. d3 {[%clk 0:02:53.9]}
8... O-O {[%clk 0:02:42.6]} 9. Be3 {[%clk 0:02:53.5]} 9... f5 {[%clk 0:02:39.4]}
10. f4 {[%clk 0:02:52.6]} 10... Nd4 {[%clk 0:02:38.1]} 11. fxe5 {[%clk
0:02:46.6]} 11... dxe5 {[%clk 0:02:37.3]} 12. Qd2 {[%clk 0:02:45.2]} 12... Kh8
{[%clk 0:02:33.4]} 13. Rf2 {[%clk 0:02:35.7]} 13... Nec6 {[%clk 0:02:26.6]} 14.
Raf1 {[%clk 0:02:34.8]} 14... Be6 {[%clk 0:02:26.2]} 15. Bg5 {[%clk 0:02:21.7]}
15... Qd7 {[%clk 0:02:25.8]} 16. Nxd4 {[%clk 0:02:18.1]} 16... exd4 {[%clk
0:02:19.4]} 17. exf5 {[%clk 0:02:05.4]} 17... Rxf5 {[%clk 0:02:15.7]} 18. Ne4
{[%clk 0:01:49.6]} 18... Rxf2 {[%clk 0:02:14.3]} 19. Nxf2 {[%clk 0:01:43.6]}
19... Ne5 {[%clk 0:02:14.2]} 20. g4 {[%clk 0:01:13.6]} 20... Rf8 {[%clk
0:02:12.6]} 21. Bh6 {[%clk 0:01:10.8]} 21... Nf3+ {[%clk 0:02:09]} 22. Bxf3
{[%clk 0:01:10]} 22... Rxf3 {[%clk 0:02:08.6]} 23. Bxg7+ {[%clk 0:01:10.1]}
23... Kxg7 {[%clk 0:02:04]} 24. Ne4 {[%clk 0:01:04.5]} 24... Rxf1+ {[%clk
0:01:57.6]} 25. Kxf1 {[%clk 0:01:03.9]} 25... h5 {[%clk 0:01:48.8]} 26. Qg5
{[%clk 0:00:54.6]} 26... hxg4 {[%clk 0:01:31.7]} 27. Qf6+ {[%clk 0:00:51.6]}
27... Kh6 {[%clk 0:01:30.1]} 28. hxg4 {[%clk 0:00:37.4]} 28... Qf7 {[%clk
0:01:14]} 29. g5+ {[%clk 0:00:33.2]} 29... Kh5 {[%clk 0:01:12.9]} 30. Kf2 {[%clk
0:00:20.4]} 30... c4 {[%clk 0:00:54.5]} 31. Kg3 {[%clk 0:00:19.4]} 31... Qxf6
{[%clk 0:00:52.3]} 32. gxf6 {[%clk 0:00:19]} 32... g5 {[%clk 0:00:50.1]} 33.
dxc4 {[%clk 0:00:14.4]} 33... Bxc4 {[%clk 0:00:46.5]} 34. b3 {[%clk 0:00:10.9]}
34... Bd5 {[%clk 0:00:44.5]} 35. Nd6 {[%clk 0:00:09.9]} 35... Kg6 {[%clk
0:00:43.8]} 36. Nb5 {[%clk 0:00:07.4]} 36... Kxf6 {[%clk 0:00:39.1]} 37. Nxd4
{[%clk 0:00:07]} 37... Ke5 {[%clk 0:00:37.1]} 38. c3 {[%clk 0:00:07.1]} 38... a6
{[%clk 0:00:33.5]} 39. a3 {[%clk 0:00:07.2]} 39... b5 {[%clk 0:00:32.1]} 40. b4
{[%clk 0:00:05.6]} 40... Kf6 {[%clk 0:00:30.1]} 0-1

[Event "*** SCC Grand Prix: Titled Tuesday Blitz"]
[Site "Chess.com"]
[Date "2020.07.14"]
[Round "8"]
[White "chito89"]
[Black "Chernobay_Artem"]
[Result "1-0"]
[WhiteElo "2803"]
[BlackElo "2629"]
[TimeControl "180+1"]
[EndTime "11:36:18 PDT"]
[Termination "chito89 won by checkmate"]

1. e4 {[%clk 0:02:58]} 1... c5 {[%clk 0:02:59.4]} 2. Nf3 {[%clk 0:02:57.5]} 2...
d6 {[%clk 0:02:59.6]} 3. d4 {[%clk 0:02:56.3]} 3... cxd4 {[%clk 0:03:00.5]} 4.
Nxd4 {[%clk 0:02:57.2]} 4... Nf6 {[%clk 0:03:00.8]} 5. Nc3 {[%clk 0:02:56.1]}
5... a6 {[%clk 0:03:01.1]} 6. f4 {[%clk 0:02:55.9]} 6... e5 {[%clk 0:03:00.6]}
7. Nf3 {[%clk 0:02:54]} 7... Nbd7 {[%clk 0:03:01]} 8. Bd3 {[%clk 0:02:49.8]}
8... Be7 {[%clk 0:02:57.6]} 9. O-O {[%clk 0:02:46]} 9... b5 {[%clk 0:02:56.5]}
10. Kh1 {[%clk 0:02:40.2]} 10... O-O {[%clk 0:02:55.2]} 11. Qe1 {[%clk
0:02:38.7]} 11... Bb7 {[%clk 0:02:53.1]} 12. a3 {[%clk 0:02:21.4]} 12... Nh5
{[%clk 0:02:39.5]} 13. fxe5 {[%clk 0:02:15.3]} 13... dxe5 {[%clk 0:02:26.2]} 14.
Nd5 {[%clk 0:02:15.3]} 14... Bd6 {[%clk 0:02:12.4]} 15. Nh4 {[%clk 0:01:32.3]}
15... Nc5 {[%clk 0:01:58]} 16. Nf5 {[%clk 0:01:23.9]} 16... Nxd3 {[%clk
0:01:48.6]} 17. cxd3 {[%clk 0:01:24.8]} 17... g6 {[%clk 0:01:44.3]} 18. Bh6
{[%clk 0:01:05.6]} 18... Re8 {[%clk 0:01:34.4]} 19. Nfe3 {[%clk 0:00:43.7]}
19... Nf4 {[%clk 0:01:20]} 20. Nxf4 {[%clk 0:00:34.9]} 20... exf4 {[%clk
0:01:19.8]} 21. Ng4 {[%clk 0:00:28.8]} 21... Rc8 {[%clk 0:00:41.6]} 22. Bxf4
{[%clk 0:00:28]} 22... Bxf4 {[%clk 0:00:27.1]} 23. Rxf4 {[%clk 0:00:28.9]} 23...
Kg7 {[%clk 0:00:14.1]} 24. Qf2 {[%clk 0:00:26.6]} 24... Re7 {[%clk 0:00:11]} 25.
Rf1 {[%clk 0:00:23.6]} 25... Rcc7 {[%clk 0:00:09.2]} 26. Qh4 {[%clk 0:00:22.1]}
26... h5 {[%clk 0:00:06.5]} 27. Nf6 {[%clk 0:00:20.5]} 27... Qxd3 {[%clk
0:00:05.3]} 28. Qg5 {[%clk 0:00:18.6]} 28... Bxe4 {[%clk 0:00:03]} 29. Nxh5+
{[%clk 0:00:13.8]} 29... Kf8 {[%clk 0:00:01.8]} 30. Qh6+ {[%clk 0:00:14.1]}
30... Ke8 {[%clk 0:00:02.2]} 31. Nf6+ {[%clk 0:00:14.6]} 31... Kd8 {[%clk
0:00:02.7]} 32. Qf8+ {[%clk 0:00:15.2]} 32... Re8 {[%clk 0:00:02]} 33. Qxe8#
{[%clk 0:00:15.3]} 1-0

[Event "*** SCC Grand Prix: Titled Tuesday Blitz"]
[Site "Chess.com"]
[Date "2020.07.14"]
[Round "8"]
[White "Tolya2"]
[Black "fabianvivasz"]
[Result "0-1"]
[WhiteElo "2382"]
[BlackElo "2276"]
[TimeControl "180+1"]
[EndTime "11:36:18 PDT"]
[Termination "fabianvivasz won by checkmate"]

1. Nf3 {[%clk 0:03:00.9]} 1... c5 {[%clk 0:02:40.5]} 2. c4 {[%clk 0:02:59.6]}
2... Nf6 {[%clk 0:02:35.7]} 3. Nc3 {[%clk 0:02:58.4]} 3... d5 {[%clk 0:02:31.9]}
4. cxd5 {[%clk 0:02:57]} 4... Nxd5 {[%clk 0:02:32.8]} 5. e4 {[%clk 0:02:56.8]}
5... Nxc3 {[%clk 0:02:30.9]} 6. dxc3 {[%clk 0:02:54.9]} 6... Qxd1+ {[%clk
0:02:29.8]} 7. Kxd1 {[%clk 0:02:54.5]} 7... f6 {[%clk 0:02:29.5]} 8. Nd2 {[%clk
0:02:51.8]} 8... e5 {[%clk 0:02:27]} 9. Nc4 {[%clk 0:02:48.1]} 9... Be6 {[%clk
0:02:19.1]} 10. a4 {[%clk 0:02:46.4]} 10... Be7 {[%clk 0:02:03.5]} 11. Be3
{[%clk 0:02:44.3]} 11... Nc6 {[%clk 0:01:53.8]} 12. f3 {[%clk 0:02:42.7]} 12...
Rc8 {[%clk 0:01:47.8]} 13. Bd3 {[%clk 0:02:26.3]} 13... Kf7 {[%clk 0:01:44.4]}
14. Ke2 {[%clk 0:02:25.5]} 14... Rhd8 {[%clk 0:01:44.1]} 15. Na3 {[%clk
0:02:18.1]} 15... Na5 {[%clk 0:01:35.1]} 16. Rad1 {[%clk 0:02:06.1]} 16... Bb3
{[%clk 0:01:28.8]} 17. Rd2 {[%clk 0:02:05.3]} 17... Bxa4 {[%clk 0:01:14.8]} 18.
Nc4 {[%clk 0:02:04.8]} 18... Rxd3 {[%clk 0:01:06]} 19. Nxa5 {[%clk 0:01:54.3]}
19... Rxd2+ {[%clk 0:01:04.1]} 20. Kxd2 {[%clk 0:01:51.9]} 20... b6 {[%clk
0:00:54.2]} 21. Nc4 {[%clk 0:01:50.2]} 21... Rd8+ {[%clk 0:00:52.5]} 22. Kc1
{[%clk 0:01:49.9]} 22... Bb3 {[%clk 0:00:42.9]} 23. Nd2 {[%clk 0:01:49.6]} 23...
Be6 {[%clk 0:00:31.9]} 24. Kc2 {[%clk 0:01:49.9]} 24... a5 {[%clk 0:00:29.2]}
25. c4 {[%clk 0:01:48.7]} 25... Ke8 {[%clk 0:00:23.3]} 26. b3 {[%clk 0:01:48.5]}
26... Kd7 {[%clk 0:00:23.3]} 27. Nb1 {[%clk 0:01:46]} 27... Kc6 {[%clk
0:00:19.9]} 28. Nc3 {[%clk 0:01:45.9]} 28... g6 {[%clk 0:00:16.2]} 29. g4 {[%clk
0:01:44.5]} 29... f5 {[%clk 0:00:15.8]} 30. Nd5 {[%clk 0:01:43.1]} 30... Bxd5
{[%clk 0:00:12]} 31. exd5+ {[%clk 0:01:43]} 31... Kd6 {[%clk 0:00:11.7]} 32.
gxf5 {[%clk 0:01:42.6]} 32... gxf5 {[%clk 0:00:12.2]} 33. Rg1 {[%clk 0:01:42.8]}
33... Bf6 {[%clk 0:00:11.9]} 34. Kd3 {[%clk 0:01:41.4]} 34... Re8 {[%clk
0:00:11.7]} 35. h4 {[%clk 0:01:35.1]} 35... e4+ {[%clk 0:00:11.6]} 36. fxe4
{[%clk 0:01:34.5]} 36... Rxe4 {[%clk 0:00:12.5]} 37. h5 {[%clk 0:01:31.5]} 37...
Rxe3+ {[%clk 0:00:12.4]} 38. Kxe3 {[%clk 0:01:30.2]} 38... Bd4+ {[%clk
0:00:12.9]} 39. Kf4 {[%clk 0:01:31.1]} 39... Bxg1 {[%clk 0:00:13.4]} 40. Kxf5
{[%clk 0:01:31.6]} 40... Be3 {[%clk 0:00:13.9]} 41. Kf6 {[%clk 0:01:31.1]} 41...
h6 {[%clk 0:00:14.3]} 42. Kf7 {[%clk 0:01:30.5]} 42... Bg5 {[%clk 0:00:14.7]}
43. Ke8 {[%clk 0:01:30.3]} 43... Ke5 {[%clk 0:00:13.8]} 44. Kd7 {[%clk
0:01:30.2]} 44... Kf4 {[%clk 0:00:12.8]} 45. Kc6 {[%clk 0:01:29.5]} 45... Kg4
{[%clk 0:00:08.1]} 46. Kxb6 {[%clk 0:01:29.5]} 46... Bd8+ {[%clk 0:00:06.8]} 47.
Kxc5 {[%clk 0:01:30.4]} 47... Kxh5 {[%clk 0:00:06.9]} 48. Kc6 {[%clk 0:01:30.1]}
48... Kg6 {[%clk 0:00:07.1]} 49. c5 {[%clk 0:01:27.7]} 49... h5 {[%clk
0:00:07.2]} 50. Kd7 {[%clk 0:01:27.8]} 50... h4 {[%clk 0:00:01.3]} 51. c6 {[%clk
0:01:26.9]} 51... h3 {[%clk 0:00:02]} 52. Kxd8 {[%clk 0:01:27]} 52... h2 {[%clk
0:00:02.6]} 53. c7 {[%clk 0:01:27.3]} 53... h1=Q {[%clk 0:00:03.1]} 54. c8=Q
{[%clk 0:01:27.3]} 54... Qxd5+ {[%clk 0:00:03.6]} 55. Qd7 {[%clk 0:01:26]} 55...
Qxb3 {[%clk 0:00:02.3]} 56. Qd6+ {[%clk 0:01:24.5]} 56... Kf7 {[%clk 0:00:01.7]}
57. Qc7+ {[%clk 0:01:23.1]} 57... Ke6 {[%clk 0:00:01.9]} 58. Qc6+ {[%clk
0:01:18.8]} 58... Kf7 {[%clk 0:00:01.9]} 59. Qc7+ {[%clk 0:01:17.4]} 59... Ke6
{[%clk 0:00:02.4]} 60. Qxa5 {[%clk 0:01:15.9]} 60... Qb8# {[%clk 0:00:01.9]} 0-1

[Event "*** SCC Grand Prix: Titled Tuesday Blitz"]
[Site "Chess.com"]
[Date "2020.07.14"]
[Round "8"]
[White "Mfcyryd"]
[Black "TigrVShlyape"]
[Result "1-0"]
[WhiteElo "2601"]
[BlackElo "2846"]
[TimeControl "180+1"]
[EndTime "11:36:19 PDT"]
[Termination "Mfcyryd won by resignation"]

1. e4 {[%clk 0:03:00.9]} 1... e5 {[%clk 0:02:51.8]} 2. Nf3 {[%clk 0:02:49.9]}
2... Nc6 {[%clk 0:02:51.3]} 3. d4 {[%clk 0:02:44.5]} 3... exd4 {[%clk
0:02:49.5]} 4. Nxd4 {[%clk 0:02:45.4]} 4... Bc5 {[%clk 0:02:48.2]} 5. Be3 {[%clk
0:02:45.1]} 5... Qf6 {[%clk 0:02:46.9]} 6. Nb5 {[%clk 0:02:43.7]} 6... Bxe3
{[%clk 0:02:38.7]} 7. fxe3 {[%clk 0:02:44.6]} 7... Qd8 {[%clk 0:02:18.7]} 8. Qg4
{[%clk 0:02:40.6]} 8... g6 {[%clk 0:01:57]} 9. Qf4 {[%clk 0:02:39.7]} 9... d6
{[%clk 0:01:54.4]} 10. Bc4 {[%clk 0:02:40.2]} 10... Ne5 {[%clk 0:01:48.6]} 11.
O-O {[%clk 0:02:39]} 11... Qe7 {[%clk 0:01:24.6]} 12. N1c3 {[%clk 0:02:35.9]}
12... g5 {[%clk 0:00:52.9]} 13. Qf2 {[%clk 0:02:27]} 13... c6 {[%clk 0:00:51.7]}
14. Bxf7+ {[%clk 0:02:23.4]} 14... Kd8 {[%clk 0:00:38.8]} 15. Nxd6 {[%clk
0:02:20.3]} 15... Nh6 {[%clk 0:00:30.9]} 16. Rad1 {[%clk 0:02:17.1]} 16... Kc7
{[%clk 0:00:30.2]} 17. Bb3 {[%clk 0:01:58.5]} 17... a6 {[%clk 0:00:27.6]} 18.
Rd4 {[%clk 0:01:52.7]} 18... Bd7 {[%clk 0:00:24.7]} 19. Rfd1 {[%clk 0:01:50.1]}
19... Nhg4 {[%clk 0:00:22.6]} 20. Qg3 {[%clk 0:01:46]} 20... h5 {[%clk
0:00:22.2]} 21. Nf7 {[%clk 0:01:29]} 21... Rhd8 {[%clk 0:00:21.5]} 22. Nxd8
{[%clk 0:01:19.9]} 22... Rxd8 {[%clk 0:00:21.4]} 23. h3 {[%clk 0:01:16.7]} 23...
h4 {[%clk 0:00:21.3]} 24. Qe1 {[%clk 0:01:15.3]} 24... Nf6 {[%clk 0:00:21.4]}
25. Qd2 {[%clk 0:01:10.8]} 25... Rf8 {[%clk 0:00:19.3]} 26. Rd6 {[%clk
0:01:03.8]} 26... Bc8 {[%clk 0:00:18.2]} 27. Qd4 {[%clk 0:01:02.8]} 27... Nh5
{[%clk 0:00:16.4]} 28. Na4 {[%clk 0:01:01.7]} 28... Kb8 {[%clk 0:00:16.2]} 29.
Nc5 {[%clk 0:00:56.7]} 29... Ng3 {[%clk 0:00:15.3]} 30. Bc4 {[%clk 0:00:49.7]}
30... Nxc4 {[%clk 0:00:13.3]} 31. Qxc4 {[%clk 0:00:50.6]} 31... Qe5 {[%clk
0:00:13.1]} 32. Nd7+ {[%clk 0:00:46.5]} 32... Bxd7 {[%clk 0:00:12.8]} 33. Rxd7
{[%clk 0:00:47.1]} 33... Qf6 {[%clk 0:00:12.5]} 34. e5 {[%clk 0:00:43]} 34...
Qf2+ {[%clk 0:00:12.3]} 35. Kh2 {[%clk 0:00:42.2]} 35... Ne2 {[%clk 0:00:10.8]}
36. Rxb7+ {[%clk 0:00:38.2]} 36... Kxb7 {[%clk 0:00:10.5]} 37. Rd7+ {[%clk
0:00:36.1]} 1-0

[Event "*** SCC Grand Prix: Titled Tuesday Blitz"]
[Site "Chess.com"]
[Date "2020.07.14"]
[Round "8"]
[White "maestroza"]
[Black "N00bM3ster"]
[Result "0-1"]
[WhiteElo "2502"]
[BlackElo "2817"]
[TimeControl "180+1"]
[EndTime "11:36:24 PDT"]
[Termination "N00bM3ster won on time"]

1. d4 {[%clk 0:03:00.9]} 1... Nf6 {[%clk 0:02:56.2]} 2. Nf3 {[%clk 0:03:00.2]}
2... d5 {[%clk 0:02:52.7]} 3. c4 {[%clk 0:02:59.8]} 3... e6 {[%clk 0:02:46.2]}
4. Nc3 {[%clk 0:02:59.3]} 4... Bb4 {[%clk 0:02:44.3]} 5. cxd5 {[%clk 0:02:58.8]}
5... exd5 {[%clk 0:02:42.9]} 6. Bg5 {[%clk 0:02:59.2]} 6... h6 {[%clk 0:02:42]}
7. Bh4 {[%clk 0:02:59]} 7... g5 {[%clk 0:02:08.2]} 8. Bg3 {[%clk 0:02:58.8]}
8... Ne4 {[%clk 0:02:07.9]} 9. Nd2 {[%clk 0:02:58]} 9... Nxc3 {[%clk 0:02:04.6]}
10. bxc3 {[%clk 0:02:57.9]} 10... Bxc3 {[%clk 0:02:04.1]} 11. Rc1 {[%clk
0:02:58.5]} 11... Ba5 {[%clk 0:02:02.8]} 12. e3 {[%clk 0:02:49.2]} 12... c6
{[%clk 0:01:58.7]} 13. Bd3 {[%clk 0:02:45]} 13... Nd7 {[%clk 0:01:55.4]} 14. h4
{[%clk 0:02:42.3]} 14... Qf6 {[%clk 0:01:50]} 15. Qh5 {[%clk 0:02:24.6]} 15...
g4 {[%clk 0:01:34.3]} 16. Qxg4 {[%clk 0:02:14]} 16... Nc5 {[%clk 0:01:31.6]} 17.
Qe2 {[%clk 0:02:08.6]} 17... Nxd3+ {[%clk 0:01:27.6]} 18. Qxd3 {[%clk
0:02:09.5]} 18... Bf5 {[%clk 0:01:26.4]} 19. Qe2 {[%clk 0:01:50.3]} 19... O-O
{[%clk 0:01:24]} 20. Be5 {[%clk 0:01:21.5]} 20... Qg6 {[%clk 0:01:20.5]} 21. f3
{[%clk 0:01:15.1]} 21... f6 {[%clk 0:01:13.6]} 22. Bf4 {[%clk 0:01:14.7]} 22...
h5 {[%clk 0:01:11.8]} 23. g4 {[%clk 0:01:01.3]} 23... hxg4 {[%clk 0:00:47.5]}
24. Rg1 {[%clk 0:00:55.6]} 24... Qh7 {[%clk 0:00:36.2]} 25. fxg4 {[%clk
0:00:55.1]} 25... Bd3 {[%clk 0:00:28.7]} 26. Qf2 {[%clk 0:00:53.2]} 26... Rae8
{[%clk 0:00:24.7]} 27. g5 {[%clk 0:00:49.4]} 27... fxg5 {[%clk 0:00:24.5]} 28.
Rxg5+ {[%clk 0:00:48.6]} 28... Kf7 {[%clk 0:00:16.4]} 29. Bd6+ {[%clk 0:00:41]}
29... Ke6 {[%clk 0:00:16.4]} 30. Bxf8 {[%clk 0:00:41.5]} 30... Rxf8 {[%clk
0:00:16.7]} 31. Re5+ {[%clk 0:00:33]} 31... Kd7 {[%clk 0:00:16.9]} 32. Qxf8
{[%clk 0:00:25.1]} 32... Qxh4+ {[%clk 0:00:16.8]} 0-1

[Event "*** SCC Grand Prix: Titled Tuesday Blitz"]
[Site "Chess.com"]
[Date "2020.07.14"]
[Round "8"]
[White "elamier"]
[Black "Azoulas1"]
[Result "1-0"]
[WhiteElo "2325"]
[BlackElo "2043"]
[TimeControl "180+1"]
[EndTime "11:36:24 PDT"]
[Termination "elamier won on time"]

1. d4 {[%clk 0:03:00.9]} 1... Nf6 {[%clk 0:02:58.4]} 2. Bg5 {[%clk 0:03:00.5]}
2... e6 {[%clk 0:02:53.6]} 3. e4 {[%clk 0:02:59.9]} 3... h6 {[%clk 0:02:51.3]}
4. Bxf6 {[%clk 0:03:00.5]} 4... Qxf6 {[%clk 0:02:50.6]} 5. Nc3 {[%clk
0:03:00.9]} 5... Bb4 {[%clk 0:02:42.4]} 6. Qd2 {[%clk 0:03:00.4]} 6... c5 {[%clk
0:02:35.8]} 7. a3 {[%clk 0:02:55.4]} 7... Bxc3 {[%clk 0:02:30.3]} 8. bxc3 {[%clk
0:02:54.6]} 8... Nc6 {[%clk 0:02:22.6]} 9. Nf3 {[%clk 0:02:48.8]} 9... O-O
{[%clk 0:02:18.1]} 10. Bd3 {[%clk 0:02:46.1]} 10... cxd4 {[%clk 0:02:12]} 11.
cxd4 {[%clk 0:02:46.6]} 11... Nxd4 {[%clk 0:02:09.6]} 12. Nxd4 {[%clk
0:02:46.7]} 12... Qxd4 {[%clk 0:02:08.5]} 13. O-O {[%clk 0:02:47.2]} 13... Qf6
{[%clk 0:02:06.4]} 14. f4 {[%clk 0:02:46.4]} 14... d6 {[%clk 0:01:58.2]} 15. Qe2
{[%clk 0:02:42.8]} 15... e5 {[%clk 0:01:51.4]} 16. f5 {[%clk 0:02:40.9]} 16...
Bd7 {[%clk 0:01:49.3]} 17. c4 {[%clk 0:02:31.5]} 17... Bc6 {[%clk 0:01:48.2]}
18. Kh1 {[%clk 0:02:30.5]} 18... Rac8 {[%clk 0:01:45.9]} 19. Qe3 {[%clk
0:02:25.1]} 19... b6 {[%clk 0:01:44.2]} 20. Rg1 {[%clk 0:02:23.4]} 20... Qg5
{[%clk 0:01:38.8]} 21. Qe2 {[%clk 0:02:17]} 21... Rfd8 {[%clk 0:01:36.3]} 22.
Raf1 {[%clk 0:02:12.3]} 22... f6 {[%clk 0:01:31.8]} 23. Rf3 {[%clk 0:02:07.1]}
23... h5 {[%clk 0:01:22.9]} 24. Rg3 {[%clk 0:02:06.1]} 24... Qh6 {[%clk
0:01:22.3]} 25. Rg6 {[%clk 0:02:04.7]} 25... Qh7 {[%clk 0:01:19.4]} 26. g4
{[%clk 0:01:56.4]} 26... hxg4 {[%clk 0:01:15.4]} 27. R1xg4 {[%clk 0:01:54.3]}
27... Rc7 {[%clk 0:01:14.4]} 28. Rxf6 {[%clk 0:01:46.7]} 28... Qh3 {[%clk
0:01:00.1]} 29. Rfg6 {[%clk 0:01:38.3]} 29... Rf8 {[%clk 0:00:55.3]} 30. f6
{[%clk 0:01:32.4]} 30... Rff7 {[%clk 0:00:47.7]} 31. Rg3 {[%clk 0:01:29.3]}
31... Qe6 {[%clk 0:00:40.9]} 32. Qh5 {[%clk 0:01:25.8]} 32... Rxf6 {[%clk
0:00:34.9]} 33. R6g4 {[%clk 0:01:11.8]} 33... Qf7 {[%clk 0:00:29.2]} 34. Qh3
{[%clk 0:01:06.4]} 34... Bd7 {[%clk 0:00:19]} 35. Be2 {[%clk 0:01:01.8]} 35...
Bxg4 {[%clk 0:00:18.2]} 36. Qxg4 {[%clk 0:01:00.3]} 36... Rf2 {[%clk 0:00:15.4]}
37. Kg1 {[%clk 0:00:52.8]} 37... Rf4 {[%clk 0:00:12.2]} 38. Qg5 {[%clk
0:00:51.1]} 38... Qf6 {[%clk 0:00:07.5]} 39. Qh5 {[%clk 0:00:45.9]} 39... Qf7
{[%clk 0:00:03.8]} 40. Qg5 {[%clk 0:00:45]} 40... Qf6 {[%clk 0:00:03.7]} 41. Qh5
{[%clk 0:00:45.1]} 41... Qf7 {[%clk 0:00:03.6]} 42. Qh3 {[%clk 0:00:38.8]} 42...
Qd7 {[%clk 0:00:01.7]} 43. Bg4 {[%clk 0:00:36.1]} 1-0